bitfinex-derivatives/quotes_BNBF0:USTF0_20250510
["timestamp","ask_amount","ask_price","bid_price","bid_amount"]
[1746842288911,0.24648609,673.26,672.31,0.303]
[1746842289210,0.24648609,673.29,672.31,0.303]
[1746842289606,0.24648609,673.28,672.31,0.303]
[1746842290009,0.24648609,673.27,672.31,0.303]
[1746842290505,0.24648609,673.26,672.31,0.303]
[1746842291012,0.24648609,673.25,672.31,0.303]
[1746842291313,0.24648609,673.24,672.31,0.303]
[1746842291607,0.24648609,673.23,672.31,0.303]
[1746842292008,0.24648609,673.22,672.31,0.303]
[1746842292412,0.24648609,673.21,672.31,0.303]
[1746842292712,0.24648609,673.2,672.31,0.303]
[1746842293215,0.24648609,673.29,672.31,0.303]
[1746842293508,0.24648609,673.19,672.31,0.303]
[1746842293912,0.24648609,673.29,672.31,0.303]
[1746842294212,0.24648609,673.28,672.31,0.303]
[1746842294512,0.24648609,673.27,672.31,0.303]
[1746842294812,0.24648609,673.26,672.31,0.303]
[1746842295112,0.24648609,673.25,672.31,0.303]
[1746842295613,0.24648609,673.24,672.31,0.303]
[1746842295912,0.24648609,673.23,672.31,0.303]
[1746842296112,0.24648609,673.22,672.31,0.303]
[1746842296413,0.24648609,673.29,672.31,0.303]
[1746842297514,0.24648609,673.29,672.31,0.666]
[1746842301016,0.5940888,673.3,672.31,0.666]
[1746842301417,0.24641046,673.29,672.31,0.666]
[1746842302116,0.24641046,673.29,672.32,0.29747739]
[1746842309827,0.24641046,673.29,672.33,0.56206366]
[1746842310028,0.24641046,673.29,672.35,0.29746411]
[1746842310230,0.24641046,673.29,672.36,1.49626617]
[1746842310528,0.2970444,673.3,672.38,0.29745084]
[1746842310728,0.2970444,673.3,672.39,1.49626617]
[1746842310930,0.2970444,673.3,672.41,0.29743757]
[1746842311131,0.2970444,673.3,672.42,1.49626617]
[1746842311430,0.2970444,673.3,672.44,0.2974243]
[1746842311630,0.2970444,673.3,672.45,1.79361999]
[1746842311830,0.2970444,673.3,672.47,0.29741103]
[1746842312032,0.2970444,673.3,672.48,1.49626617]
[1746842312331,0.2970444,673.3,672.5,0.29739776]
[1746842312528,0.2970444,673.3,672.51,0.56206366]
[1746842312728,0.2970444,673.3,672.52,1.1568064]
[1746842312927,0.2970444,673.3,672.53,0.85944816]
[1746842313129,0.2970444,673.3,672.54,0.85944374]
[1746842313330,0.2970444,673.3,672.55,0.85943931]
[1746842313530,0.2970444,673.3,672.56,0.29737123]
[1746842317738,0.2970444,673.3,672.57,0.29734677]
[1746842317930,0.2970444,673.3,672.58,0.29736239]
[1746842318736,0.24622344,673.29,672.58,0.29736239]
[1746842318936,0.2970444,673.3,672.58,0.29736239]
[1746842320236,0.2970444,673.3,672.59,0.257]
[1746842320538,0.2970444,673.3,672.6,0.29735355]
[1746842320736,0.24622379,673.29,672.6,0.29735355]
[1746842320937,0.2970444,673.3,672.6,0.29735355]
[1746842321933,0.2970444,673.3,672.61,0.29731161]
[1746842322838,0.2970444,673.3,672.62,0.59465632]
[1746842323031,0.2970444,673.3,672.63,1.78234969]
[1746842323233,0.2970444,673.3,672.64,0.29733587]
[1746842323437,0.2970444,673.3,672.65,0.29731161]
[1746842324136,0.2970444,673.3,672.66,0.29731161]
[1746842324538,0.2970444,673.3,672.67,0.59463421]
[1746842324839,0.2970444,673.3,672.68,0.59462979]
[1746842325038,0.2970444,673.3,672.69,0.29731377]
[1746842325539,0.2970444,673.3,672.7,0.29731161]
[1746842325739,0.2970444,673.3,672.69,0.29731377]
[1746842327137,0.2970444,673.3,672.7,1.22316304]
[1746842327442,0.2970444,673.3,672.71,0.29730493]
[1746842328038,0.2970444,673.3,672.72,0.29728811]
[1746842328243,0.2970444,673.3,672.73,0.29729609]
[1746842328843,0.2970444,673.3,672.74,0.29728811]
[1746842329143,0.2970444,673.3,672.75,0.29728725]
[1746842329942,0.2970444,673.3,672.76,0.29728811]
[1746842330244,0.2970444,673.3,672.77,0.29727841]
[1746842331946,0.2970444,673.3,672.78,1.47851594]
[1746842332140,0.2970444,673.3,672.79,1.47851594]
[1746842332346,0.2970444,673.3,672.8,1.47851594]
[1746842332544,0.2970444,673.3,672.81,1.77566347]
[1746842332742,0.2970444,673.3,672.82,1.47851594]
[1746842332944,0.2970444,673.3,672.83,1.77576784]
[1746842333243,0.2970444,673.3,672.84,1.77576342]
[1746842333446,0.2970444,673.3,672.85,1.77575901]
[1746842333647,0.2970444,673.3,672.86,0.92292983]
[1746842333845,0.2970444,673.3,672.87,1.22007736]
[1746842334152,0.2970444,673.3,672.88,1.51730717]
[1746842334355,0.2970444,673.3,672.89,0.92292983]
[1746842334550,0.2970444,673.3,672.9,1.22015081]
[1746842334750,0.2970444,673.3,672.91,1.22014639]
[1746842334951,0.2970444,673.3,672.92,1.22014198]
[1746842335250,0.2970444,673.3,672.93,0.59435526]
[1746842335444,0.2970444,673.3,672.94,0.29720331]
[1746842335647,0.2970444,673.3,672.95,0.29714753]
[1746842335847,0.2970444,673.3,672.96,0.29719448]
[1746842336045,0.2970444,673.3,672.96,0.59434201]
[1746842336352,0.2970444,673.3,672.97,0.29714753]
[1746842336551,0.2970444,673.3,672.98,0.29718565]
[1746842336847,0.2970444,673.3,672.99,0.29714753]
[1746842337152,0.2970444,673.3,673.0,0.29717682]
[1746842337352,0.2970444,673.3,673.0,0.59432435]
[1746842337853,0.2970444,673.3,673.01,0.29714753]
[1746842338052,0.2970444,673.3,673.02,0.29716798]
[1746842338447,0.2970444,673.3,673.03,0.29714753]
[1746842338753,0.2970444,673.3,673.02,0.29716798]
[1746842339455,0.2970444,673.3,673.03,0.29718617]
[1746842339653,0.2970444,673.3,673.04,0.29715915]
[1746842370386,0.2970444,673.3,673.02,0.32]
[1746842374987,0.24626258,673.29,673.02,0.32]
[1746842375188,0.24626258,673.29,672.75,0.283]
[1746842375490,0.24626258,673.29,671.24,0.9336209]
[1746842375787,0.2970444,673.3,671.34,0.29791163]
[1746842375984,0.2970444,673.3,671.35,1.79054624]
[1746842376188,0.2970444,673.3,671.36,1.49315444]
[1746842376381,0.2970444,673.3,671.37,1.49315444]
[1746842376583,0.2970444,673.3,671.38,1.49315444]
[1746842376784,0.2970444,673.3,671.39,1.76638313]
[1746842376983,0.2970444,673.3,671.4,1.49315444]
[1746842377183,0.2970444,673.3,671.41,1.79054624]
[1746842377384,0.2970444,673.3,671.42,1.4926337]
[1746842377588,0.2970444,673.3,671.43,1.7900255]
[1746842377789,0.2970444,673.3,671.44,1.49254426]
[1746842377984,0.2970444,673.3,671.45,1.78993606]
[1746842378188,0.2970444,673.3,671.46,1.49254426]
[1746842378483,0.2970444,673.3,671.45,0.2973918]
[1746842378484,0.2970444,673.3,671.47,1.78993606]
[1746842378689,0.2970444,673.3,671.48,1.76577295]
[1746842378889,0.2970444,673.3,671.49,1.76577295]
[1746842379188,0.2970444,673.3,671.5,1.76541507]
[1746842379390,0.2970444,673.3,671.51,1.76541507]
[1746842379588,0.2970444,673.3,671.52,1.78957818]
[1746842379785,0.2970444,673.3,671.53,1.49218638]
[1746842379983,0.2970444,673.3,671.54,1.76541507]
[1746842380187,0.2970444,673.3,671.55,1.78961052]
[1746842380487,0.2970444,673.3,671.56,1.49221872]
[1746842380788,0.2970444,673.3,671.57,1.78961052]
[1746842380989,0.2970444,673.3,671.58,2.06283921]
[1746842381289,0.2970444,673.3,671.59,1.76531594]
[1746842381491,0.2970444,673.3,671.6,1.49208725]
[1746842381691,0.2970444,673.3,671.61,1.78947905]
[1746842381884,0.2970444,673.3,671.62,1.49208725]
[1746842382184,0.2970444,673.3,671.63,1.76531594]
[1746842382385,0.2970444,673.3,671.64,1.49208725]
[1746842382587,0.2970444,673.3,671.65,1.49208725]
[1746842382786,0.2970444,673.3,671.66,1.49208725]
[1746842382986,0.2970444,673.3,671.67,1.49208725]
[1746842383188,0.2970444,673.3,671.68,1.49208725]
[1746842383388,0.2970444,673.3,671.69,1.49208725]
[1746842383590,0.24620398,673.29,671.7,1.78947905]
[1746842383786,0.24620398,673.29,671.71,1.76531594]
[1746842383986,0.24620398,673.29,671.72,1.78947905]
[1746842384192,0.2970444,673.3,671.73,1.49208725]
[1746842384387,0.2970444,673.3,671.74,1.49208725]
[1746842384584,0.2970444,673.3,671.75,1.78947905]
[1746842384788,0.2970444,673.3,671.76,1.49208725]
[1746842384990,0.2970444,673.3,671.77,1.49208725]
[1746842385189,0.2970444,673.3,671.78,1.76531594]
[1746842385387,0.2970444,673.3,671.79,1.78947905]
[1746842385686,0.2970444,673.3,671.8,1.49208725]
[1746842385893,0.2970444,673.3,671.81,1.78947905]
[1746842386090,0.2970444,673.3,671.82,1.49208725]
[1746842386291,0.2970444,673.3,671.83,1.49208725]
[1746842386490,0.2970444,673.3,671.84,1.78947905]
[1746842386792,0.2970444,673.3,671.85,1.48971845]
[1746842387087,0.2970444,673.3,671.86,1.76294714]
[1746842387286,0.2970444,673.3,671.87,1.48971845]
[1746842387490,0.2970444,673.3,671.88,1.48971845]
[1746842387690,0.2970444,673.3,671.89,1.48971845]
[1746842387990,0.2970444,673.3,671.9,1.48971845]
[1746842388191,0.2970444,673.3,671.91,1.78711025]
[1746842388392,0.2970444,673.3,671.92,1.48971845]
[1746842388588,0.2970444,673.3,671.93,1.48971845]
[1746842388792,0.2970444,673.3,671.91,0.2973918]
[1746842388793,0.2970444,673.3,671.94,1.48971845]
[1746842388995,0.2970444,673.3,671.95,1.78711025]
[1746842389194,0.2970444,673.3,671.96,1.48971845]
[1746842389391,0.2970444,673.3,671.97,1.78711025]
[1746842389590,0.2970444,673.3,671.98,1.48971845]
[1746842389791,0.2970444,673.3,671.99,1.78711025]
[1746842389989,0.2970444,673.3,672.0,1.48971845]
[1746842390190,0.2970444,673.3,672.01,1.48971845]
[1746842390490,0.2970444,673.3,672.02,1.48971845]
[1746842390795,0.2970444,673.3,672.03,1.48969899]
[1746842390994,0.2970444,673.3,672.04,1.78709079]
[1746842391289,0.2970444,673.3,672.05,1.48969899]
[1746842391495,0.2970444,673.3,672.06,1.48969899]
[1746842391690,0.2970444,673.3,672.07,1.48969899]
[1746842391890,0.2970444,673.3,672.08,1.48969899]
[1746842392195,0.2970444,673.3,672.09,1.78709079]
[1746842392391,0.2970444,673.3,672.1,1.48969899]
[1746842392695,0.2970444,673.3,672.11,1.48977666]
[1746842392990,0.2970444,673.3,672.12,1.78716846]
[1746842393194,0.2970444,673.3,672.13,1.48977666]
[1746842393396,0.2970444,673.3,672.14,1.48977666]
[1746842393595,0.2970444,673.3,672.15,1.48977666]
[1746842393795,0.2970444,673.3,672.16,1.48977666]
[1746842393988,0.2970444,673.3,672.17,1.78716846]
[1746842394193,0.2970444,673.3,672.18,1.48977666]
[1746842394391,0.2970444,673.3,672.19,1.7875904]
[1746842394595,0.2970444,673.3,672.2,1.4901986]
[1746842394794,0.2970444,673.3,672.21,1.7875904]
[1746842394992,0.2970444,673.3,672.22,1.4901986]
[1746842395191,0.2970444,673.3,672.23,1.4901986]
[1746842395391,0.2970444,673.3,672.24,1.4901986]
[1746842395597,0.2970444,673.3,672.25,1.7875904]
[1746842395797,0.2970444,673.3,672.26,1.4901986]
[1746842395998,0.2970444,673.3,672.27,1.78762873]
[1746842396193,0.2970444,673.3,672.28,0.93085603]
[1746842396393,0.2970444,673.3,672.29,1.49027435]
[1746842396597,0.2970444,673.3,672.3,1.49027435]
[1746842396797,0.2970444,673.3,672.31,1.78766615]
[1746842396998,0.2970444,673.3,672.32,1.78766615]
[1746842397297,0.2970444,673.3,672.34,0.29746854]
[1746842397497,0.2970444,673.3,672.35,1.49027435]
[1746842397698,0.2970444,673.3,672.36,1.49027435]
[1746842397894,0.2970444,673.3,672.37,1.49027435]
[1746842398099,0.2970444,673.3,672.38,1.49027435]
[1746842398300,0.2970444,673.3,672.39,1.49027435]
[1746842398504,0.2970444,673.3,672.38,0.29724092]
[1746842398505,0.2970444,673.3,672.4,1.49027435]
[1746842398698,0.2970444,673.3,672.41,1.78751527]
[1746842398901,0.2970444,673.3,672.42,1.49027435]
[1746842399103,0.2970444,673.3,672.43,1.78751527]
[1746842399304,0.2970444,673.3,672.44,1.49027435]
[1746842399504,0.2970444,673.3,672.45,1.49027435]
[1746842399703,0.2970444,673.3,672.46,1.49027435]
[1746842399905,0.2970444,673.3,672.47,1.49027435]
[1746842400105,0.2970444,673.3,672.48,1.78751527]
[1746842400305,0.2970444,673.3,672.49,1.49027435]
[1746842400506,0.2970444,673.3,672.51,0.29739334]
[1746842400802,0.2970444,673.3,672.52,1.78799598]
[1746842401006,0.2970444,673.3,672.53,1.49075506]
[1746842401200,0.2970444,673.3,672.54,1.49075506]
[1746842401403,0.2970444,673.3,672.55,1.78799598]
[1746842401603,0.2970444,673.3,672.56,1.49075506]
[1746842401801,0.2970444,673.3,672.57,2.08536279]
[1746842401999,0.2970444,673.3,672.58,1.78811745]
[1746842402205,0.2970444,673.3,672.59,1.49075506]
[1746842402407,0.2970444,673.3,672.6,1.78810861]
[1746842402605,0.2970444,673.3,672.61,1.78810419]
[1746842402805,0.2970444,673.3,672.62,1.49075506]
[1746842403006,0.2970444,673.3,672.63,1.78799598]
[1746842403301,0.2970444,673.3,672.64,1.49075506]
[1746842403508,0.2970444,673.3,672.65,1.78799598]
[1746842403806,0.2970444,673.3,672.66,1.49075506]
[1746842404008,0.2970444,673.3,672.67,1.49075506]
[1746842404212,0.2970444,673.3,672.68,1.49075506]
[1746842404407,0.2970444,673.3,672.69,1.49075506]
[1746842404608,0.2970444,673.3,672.7,1.78806441]
[1746842404809,0.2970444,673.3,672.71,1.78805999]
[1746842405013,0.2970444,673.3,672.72,1.78777183]
[1746842405310,0.2970444,673.3,672.73,1.78772405]
[1746842405507,0.2970444,673.3,672.74,1.7877748]
[1746842405705,0.2970444,673.3,672.75,2.0850113]
[1746842405905,0.2970444,673.3,672.76,1.49048313]
[1746842406109,0.2970444,673.3,672.77,1.78772405]
[1746842406310,0.2970444,673.3,672.78,1.49048313]
[1746842406503,0.2970444,673.3,672.79,1.78772405]
[1746842406705,0.2970444,673.3,672.8,0.55941832]
[1746842406907,0.2970444,673.3,672.79,0.29724092]
[1746842406908,0.2970444,673.3,672.81,0.55941832]
[1746842407108,0.2970444,673.3,672.82,0.85665924]
[1746842407308,0.2970444,673.3,672.83,0.55941832]
[1746842407506,0.2970444,673.3,672.84,0.85665924]
[1746842407709,0.2970444,673.3,672.85,0.55941832]
[1746842407903,0.2970444,673.3,672.86,0.85665924]
[1746842408105,0.2970444,673.3,672.87,0.55941832]
[1746842408310,0.2970444,673.3,672.88,0.55941832]
[1746842408511,0.2970444,673.3,672.89,0.55941832]
[1746842408712,0.2970444,673.3,672.9,0.55961901]
[1746842409012,0.2970444,673.3,672.91,0.55961901]
[1746842409212,0.2970444,673.3,672.75,0.29728725]
[1746842409413,0.2970444,673.3,672.76,1.78906306]
[1746842409612,0.2970444,673.3,672.77,1.49178246]
[1746842409808,0.2970444,673.3,672.78,1.78905645]
[1746842410012,0.2970444,673.3,672.79,1.78906306]
[1746842410209,0.2970444,673.3,672.8,1.49178246]
[1746842410409,0.2970444,673.3,672.81,1.49252128]
[1746842410707,0.2970444,673.3,672.82,0.55988092]
[1746842410911,0.2970444,673.3,672.83,0.55988092]
[1746842411113,0.2970444,673.3,672.84,0.8571635]
[1746842411312,0.2970444,673.3,672.85,0.55988092]
[1746842411513,0.2970444,673.3,672.86,0.8571635]
[1746842411713,0.2970444,673.3,672.87,0.55988092]
[1746842411908,0.2970444,673.3,672.88,0.8571635]
[1746842412110,0.2970444,673.3,672.89,0.8571635]
[1746842412312,0.2970444,673.3,672.9,0.55986867]
[1746842412517,0.2970444,673.3,672.91,0.55986867]
[1746842412709,0.2970444,673.3,672.92,0.55986867]
[1746842412914,0.2970444,673.3,672.93,0.85715125]
[1746842413218,0.2970444,673.3,672.94,0.85715125]
[1746842413410,0.2970444,673.3,672.95,0.55986867]
[1746842413607,0.2970444,673.3,672.96,0.55986867]
[1746842413811,0.2970444,673.3,672.78,0.29727399]
[1746842414015,0.2970444,673.3,672.79,1.49301652]
[1746842414212,0.2970444,673.3,672.8,1.49301652]
[1746842414509,0.2970444,673.3,672.81,1.49301652]
[1746842414709,0.2970444,673.3,672.82,1.49301652]
[1746842415015,0.2970444,673.3,672.83,1.7902812]
[1746842415212,0.2970444,673.3,672.84,1.79053272]
[1746842415413,0.2970444,673.3,672.85,1.49326804]
[1746842415615,0.2970444,673.3,672.86,1.49326804]
[1746842415815,0.2970444,673.3,672.87,1.49326804]
[1746842416014,0.2970444,673.3,672.88,1.4932008]
[1746842416209,0.2970444,673.3,672.89,1.49284534]
[1746842416413,0.2970444,673.3,672.9,1.49284534]
[1746842416613,0.2970444,673.3,672.91,1.79011002]
[1746842416914,0.2970444,673.3,672.92,1.49284534]
[1746842417115,0.2970444,673.3,672.93,1.79011002]
[1746842417414,0.2970444,673.3,672.94,0.8572435]
[1746842417609,0.2970444,673.3,672.95,0.55997882]
[1746842417816,0.2970444,673.3,672.94,0.29726468]
[1746842417817,0.2970444,673.3,672.96,0.55997882]
[1746842418017,0.2970444,673.3,672.97,0.55997882]
[1746842418316,0.2970444,673.3,672.98,0.55997882]
[1746842418517,0.2970444,673.3,672.96,0.29726468]
[1746842418518,0.2970444,673.3,672.99,0.55997882]
[1746842418717,0.2970444,673.3,673.0,0.55997882]
[1746842419018,0.2970444,673.3,673.01,0.8572435]
[1746842419215,0.2970444,673.3,673.02,0.55997882]
[1746842419518,0.2970444,673.3,673.03,0.8572435]
[1746842419715,0.2970444,673.3,673.04,0.55997882]
[1746842419916,0.2970444,673.3,673.05,0.55997882]
[1746842420116,0.2970444,673.3,673.03,0.29726468]
[1746842420312,0.2970444,673.3,673.04,0.55998999]
[1746842420517,0.2970444,673.3,673.05,0.55998999]
[1746842420718,0.2970444,673.3,673.06,0.55996797]
[1746842421017,0.2970444,673.3,673.07,0.55996797]
[1746842421317,0.2970444,673.3,672.78,0.29727399]
[1746842421518,0.2970444,673.3,672.79,1.79009376]
[1746842421717,0.2970444,673.3,672.8,1.49286619]
[1746842421918,0.2970444,673.3,672.81,1.49286619]
[1746842422114,0.2970444,673.3,672.82,1.49286619]
[1746842422317,0.2970444,673.3,672.83,1.49286619]
[1746842422518,0.2970444,673.3,672.84,1.79009376]
[1746842422814,0.2970444,673.3,672.85,1.49286619]
[1746842423118,0.2970444,673.3,672.86,1.49286619]
[1746842423317,0.2970444,673.3,672.87,1.49286619]
[1746842423516,0.2970444,673.3,672.88,1.49286619]
[1746842423713,0.2970444,673.3,672.89,1.49286619]
[1746842423913,0.2970444,673.3,672.9,1.78975059]
[1746842424119,0.2970444,673.3,672.91,1.49252302]
[1746842424314,0.2970444,673.3,672.92,1.49252302]
[1746842424518,0.2970444,673.3,672.93,1.78975059]
[1746842424722,0.2970444,673.3,672.94,1.49252302]
[1746842425019,0.2970444,673.3,672.95,1.49252302]
[1746842425220,0.2970444,673.3,672.96,1.78975059]
[1746842425420,0.2970444,673.3,672.97,1.49252302]
[1746842425614,0.2970444,673.3,672.96,0.29722757]
[1746842425615,0.2970444,673.3,672.98,1.78975059]
[1746842425819,0.2970444,673.3,672.99,1.78975059]
[1746842426019,0.2970444,673.3,673.0,1.49252302]
[1746842426220,0.2970444,673.3,673.01,1.78975059]
[1746842426416,0.2970444,673.3,673.02,1.49252302]
[1746842426620,0.2970444,673.3,673.03,1.49252302]
[1746842426823,0.2970444,673.3,673.04,1.49252302]
[1746842427022,0.2970444,673.3,673.05,1.49252302]
[1746842427321,0.2970444,673.3,673.06,1.49252302]
[1746842427621,0.2970444,673.3,673.07,1.49252302]
[1746842427822,0.2970444,673.3,673.08,1.49252302]
[1746842428121,0.2970444,673.3,673.09,1.78975059]
[1746842428318,0.2970444,673.3,673.1,1.78975059]
[1746842428525,0.2970444,673.3,673.11,1.49252302]
[1746842428721,0.2970444,673.3,673.12,1.49252302]
[1746842428922,0.2970444,673.3,673.13,1.78975059]
[1746842429122,0.2970444,673.3,673.14,1.49252302]
[1746842429318,0.2970444,673.3,673.15,1.49252302]
[1746842429519,0.2970444,673.3,673.16,1.78556134]
[1746842429720,0.2970444,673.3,673.17,1.48833377]
[1746842429924,0.2970444,673.3,673.18,1.48833377]
[1746842430221,0.2970444,673.3,673.19,1.78556134]
[1746842430423,0.2970444,673.3,673.2,1.78556134]
[1746842430625,0.2970444,673.3,673.21,1.48833377]
[1746842430826,0.2970444,673.3,673.22,1.48833377]
[1746842431123,0.2970444,673.3,673.23,1.48833377]
[1746842431426,0.2970444,673.3,673.24,1.48833377]
[1746842431626,0.2970444,673.3,673.25,0.85561459]
[1746842431828,0.2970444,673.3,673.26,0.55838702]
[1746842432030,0.2970444,673.3,673.27,0.85561459]
[1746842432229,0.2970444,673.3,673.28,0.55838702]
[1746842432430,0.2970444,673.3,673.29,0.85561459]
[1746842433333,0.2970444,673.3,673.29,0.8550066]
[1746842434332,0.2970444,673.3,673.29,0.29722757]
[1746842434534,0.2970444,673.3,672.78,0.29727399]
[1746842434734,0.2970444,673.3,672.79,1.48630419]
[1746842434934,0.2970444,673.3,672.8,1.48630419]
[1746842435233,0.2970444,673.3,672.81,1.48630419]
[1746842435433,0.2970444,673.3,672.82,1.48630419]
[1746842435627,0.2970444,673.3,672.83,1.48630419]
[1746842435828,0.2970444,673.3,672.84,1.7834252]
[1746842436028,0.2970444,673.3,672.85,1.7834252]
[1746842436227,0.2970444,673.3,672.86,1.48630419]
[1746842436432,0.2970444,673.3,672.87,1.48630419]
[1746842436628,0.2970444,673.3,672.88,1.48630419]
[1746842436832,0.2970444,673.3,672.89,1.48630419]
[1746842437028,0.2970444,673.3,672.9,0.92869861]
[1746842437230,0.2970444,673.3,672.91,1.48617902]
[1746842437534,0.2970444,673.3,672.92,1.78330003]
[1746842437730,0.2970444,673.3,672.93,1.48617902]
[1746842437934,0.2970444,673.3,672.94,1.78330003]
[1746842438235,0.2970444,673.3,672.95,1.78330003]
[1746842438435,0.2970444,673.3,672.96,1.78330003]
[1746842438635,0.2970444,673.3,672.97,1.78330003]
[1746842438833,0.2970444,673.3,672.98,1.48617902]
[1746842439136,0.2970444,673.3,672.99,1.78308542]
[1746842439337,0.2970444,673.3,673.0,1.48596441]
[1746842439535,0.2970444,673.3,673.01,1.78308542]
[1746842439735,0.2970444,673.3,673.02,1.78308542]
[1746842439935,0.2970444,673.3,673.03,1.48596441]
[1746842440235,0.2970444,673.3,673.04,1.78308542]
[1746842440435,0.2970444,673.3,673.05,1.48596441]
[1746842440636,0.2970444,673.3,673.06,1.78308542]
[1746842440837,0.2970444,673.3,673.07,1.48599849]
[1746842441037,0.2970444,673.3,673.08,1.7831195]
[1746842441236,0.2970444,673.3,673.09,1.48599849]
[1746842441531,0.2970444,673.3,673.1,1.48599849]
[1746842441733,0.2970444,673.3,673.11,1.7831195]
[1746842442037,0.2970444,673.3,673.12,1.48599849]
[1746842442238,0.2970444,673.3,673.13,1.7831195]
[1746842442536,0.2970444,673.3,673.14,1.48599849]
[1746842442733,0.2970444,673.3,673.15,1.48599849]
[1746842442937,0.2970444,673.3,673.16,1.48599849]
[1746842443135,0.2970444,673.3,673.17,1.7831195]
[1746842443333,0.2970444,673.3,673.18,1.48599849]
[1746842443535,0.2970444,673.3,673.19,1.7831195]
[1746842443735,0.2970444,673.3,673.2,1.48599849]
[1746842443935,0.2970444,673.3,673.21,1.48599849]
[1746842444242,0.2970444,673.3,673.22,1.48599849]
[1746842444435,0.2970444,673.3,673.23,1.7831195]
[1746842444739,0.2970444,673.3,673.24,1.48599849]
[1746842444936,0.2970444,673.3,673.25,0.85483196]
[1746842445138,0.2970444,673.3,673.26,0.55771095]
[1746842445440,0.2970444,673.3,673.27,0.85483196]
[1746842445633,0.2970444,673.3,673.28,0.55771095]
[1746842445835,0.2970444,673.3,673.29,0.85483196]
[1746842446541,0.2970444,673.3,673.29,0.85503201]
[1746842455747,0.2970444,673.3,673.29,0.85505312]
[1746842459358,0.2970444,673.3,673.29,0.85474335]
[1746842459652,0.2970444,673.3,673.29,0.29712101]
[1746842460347,0.2970444,673.3,672.78,0.29727399]
[1746842460547,0.2970444,673.3,672.79,1.48598644]
[1746842460847,0.2970444,673.3,672.8,1.48598644]
[1746842461047,0.2970444,673.3,672.78,0.29727399]
[1746842461048,0.2970444,673.3,672.81,1.48598644]
[1746842461240,0.2970444,673.3,672.82,1.48598644]
[1746842461444,0.2970444,673.3,672.83,1.78316412]
[1746842461642,0.2970444,673.3,672.84,1.48598644]
[1746842461947,0.2970444,673.3,672.85,1.78316412]
[1746842462140,0.2970444,673.3,672.86,1.78316412]
[1746842462341,0.2970444,673.3,672.87,1.4864418]
[1746842462544,0.2970444,673.3,672.88,1.4864418]
[1746842462746,0.2970444,673.3,672.89,1.4864418]
[1746842462948,0.2970444,673.3,672.9,1.4864418]
[1746842463148,0.2970444,673.3,672.91,1.78361948]
[1746842463343,0.2970444,673.3,672.92,1.4864418]
[1746842463542,0.2970444,673.3,672.93,1.4864418]
[1746842463746,0.2970444,673.3,672.94,1.4864418]
[1746842463945,0.2970444,673.3,672.95,1.78361948]
[1746842464141,0.2970444,673.3,672.96,1.48677612]
[1746842464446,0.2970444,673.3,672.97,1.48677612]
[1746842464745,0.2970444,673.3,672.98,1.48677612]
[1746842464945,0.2970444,673.3,672.99,1.7839538]
[1746842465146,0.2970444,673.3,673.0,1.7839538]
[1746842465341,0.2970444,673.3,673.01,1.48677612]
[1746842465546,0.2970444,673.3,673.02,0.55804945]
[1746842465848,0.2970444,673.3,673.03,0.29717768]
[1746842466049,0.2970444,673.3,673.04,0.29717768]
[1746842466350,0.2970444,673.3,672.78,0.29727399]
[1746842466548,0.2970444,673.3,672.79,1.48806638]
[1746842466747,0.2970444,673.3,672.8,1.78528842]
[1746842466946,0.2970444,673.3,672.81,1.48806638]
[1746842467249,0.2970444,673.3,672.82,1.78528842]
[1746842467448,0.2970444,673.3,672.83,1.48806638]
[1746842467643,0.2970444,673.3,672.84,1.48806638]
[1746842467847,0.2970444,673.3,672.85,1.48729278]
[1746842468045,0.2970444,673.3,672.86,1.48729278]
[1746842468243,0.2970444,673.3,672.87,1.48729278]
[1746842468441,0.2970444,673.3,672.88,1.48729278]
[1746842468643,0.2970444,673.3,672.89,1.48729278]
[1746842468843,0.2970444,673.3,672.9,1.48729278]
[1746842469047,0.2970444,673.3,672.91,1.78451482]
[1746842469246,0.2970444,673.3,672.92,1.48729278]
[1746842469443,0.2970444,673.3,672.93,0.55880148]
[1746842469648,0.2970444,673.3,672.78,0.29727399]
[1746842469844,0.2970444,673.3,672.79,1.48821243]
[1746842470052,0.2970444,673.3,672.8,1.78547535]
[1746842470350,0.2970444,673.3,672.81,1.48821243]
[1746842470649,0.2970444,673.3,672.82,1.78547535]
[1746842470846,0.2970444,673.3,672.83,1.48821243]
[1746842471051,0.2970444,673.3,672.84,0.85639981]
[1746842471247,0.2970444,673.3,672.85,0.55913689]
[1746842471448,0.2970444,673.3,672.86,0.85639981]
[1746842471644,0.2970444,673.3,672.87,0.55913689]
[1746842471851,0.2970444,673.3,672.88,0.55913689]
[1746842472046,0.2970444,673.3,672.89,0.85639981]
[1746842472353,0.2970444,673.3,672.9,0.55913689]
[1746842472546,0.2970444,673.3,672.91,0.55913689]
[1746842472749,0.2970444,673.3,672.92,0.85639981]
[1746842472946,0.2970444,673.3,672.93,0.55913689]
[1746842473145,0.2970444,673.3,672.78,0.29727399]
[1746842473352,0.2970444,673.3,672.79,1.48892236]
[1746842473551,0.2970444,673.3,672.8,1.78618643]
[1746842473747,0.2970444,673.3,672.81,1.48892236]
[1746842473946,0.2970444,673.3,672.82,1.48892236]
[1746842474148,0.2970444,673.3,672.83,1.48892236]